[Event "Open Cappelle-la-Grande"]
[Date "2025.02.21"]
[White "Muthaiah AL"]
[Black "Wirig, Anthony"]
[WhiteElo "2474"]
[BlackElo "2419"]
[Round "9.9.7"]
[Result "1/2-1/2"]
[TimeControl "40/5400+30:1800+30"]

1. d4 {[%clk 1:30:03]} 1... Nf6 {[%clk 1:30:53]} 2. c4 {[%clk 1:30:19]} 2... e6
{[%clk 1:31:18]} 3. Nf3 {[%clk 1:30:25]} 3... d5 {[%clk 1:31:46]} 4. Nc3 {[%clk
1:30:26]} 4... Be7 {[%clk 1:32:11]} 5. Bf4 {[%clk 1:29:12]} 5... O-O {[%clk
1:32:35]} 6. e3 {[%clk 1:29:24]} 6... Nbd7 {[%clk 1:33:00]} 7. cxd5 {[%clk
1:27:32]} 7... exd5 {[%clk 1:31:01]} 8. h3 {[%clk 1:22:48]} 8... c6 {[%clk
1:29:07]} 9. Bd3 {[%clk 1:22:50]} 9... Re8 {[%clk 1:29:06]} 10. O-O {[%clk
1:23:01]} 10... Nf8 {[%clk 1:27:44]} 11. Ne5 {[%clk 1:12:52]} 11... Ne6 {[%clk
1:27:46]} 12. Bh2 {[%clk 1:08:26]} 12... c5 {[%clk 1:16:15]} 13. dxc5 {[%clk
1:04:36]} 13... Nxc5 {[%clk 1:15:16]} 14. Bb5 {[%clk 0:59:19]} 14... Rf8 {[%clk
1:15:36]} 15. Be2 {[%clk 0:54:26]} 15... Qb6 {[%clk 1:14:30]} 16. Nd3 {[%clk
0:42:27]} 16... Ne6 {[%clk 1:03:24]} 17. Be5 {[%clk 0:32:49]} 17... d4 {[%clk
1:01:49]} 18. Bxf6 {[%clk 0:32:14]} 18... Bxf6 {[%clk 1:02:13]} 19. Nd5 {[%clk
0:32:30]} 19... Qd8 {[%clk 1:01:58]} 20. e4 {[%clk 0:32:12]} 20... Ng5 {[%clk
0:48:53]} 21. Nxf6+ {[%clk 0:25:57]} 21... Qxf6 {[%clk 0:49:04]} 22. e5 {[%clk
0:26:00]} 22... Qg6 {[%clk 0:47:29]} 23. Kh2 {[%clk 0:23:31]} 23... Ne4 {[%clk
0:42:39]} 24. Qe1 {[%clk 0:18:03]} 24... b6 {[%clk 0:39:47]} 25. Rc1 {[%clk
0:14:35]} 25... Bb7 {[%clk 0:34:57]} 26. f3 {[%clk 0:13:58]} 26... Ng5 {[%clk
0:33:17]} 27. f4 {[%clk 0:13:00]} 27... Ne6 {[%clk 0:33:11]} 28. Qf2 {[%clk
0:11:06]} 28... f5 {[%clk 0:32:33]} 29. Bf3 {[%clk 0:07:14]} 29... Qf7 {[%clk
0:27:47]} 30. Bxb7 {[%clk 0:06:09]} 30... Qxb7 {[%clk 0:28:15]} 31. Qc2 {[%clk
0:05:38]} 31... Rac8 {[%clk 0:26:15]} 32. Qb3 {[%clk 0:05:38]} 32... Qd7 {[%clk
0:26:15]} 33. a4 {[%clk 0:05:09]} 33... Kh8 {[%clk 0:25:50]} 34. Qb4 {[%clk
0:02:28]} 34... h6 {[%clk 0:21:28]} 35. a5 {[%clk 0:02:13]} 35... bxa5 {[%clk
0:21:53]} 36. Qxa5 {[%clk 0:02:39]} 36... Qb7 {[%clk 0:22:00]} 37. Qa2 {[%clk
0:02:38]} 37... Rce8 {[%clk 0:17:46]} 38. Qc4 {[%clk 0:01:07]} 38... Rf7 {[%clk
0:15:26]} 39. Qc6 {[%clk 0:01:16]} 39... Qb8 {[%clk 0:14:40]} 40. Qd5 {[%clk
0:00:36]} 40... Qb7 {[%clk 0:09:13]} 41. Qxb7 {[%clk 0:23:58]} 41... Rxb7 {[%clk
0:38:50]} 42. b4 {[%clk 0:24:19]} 42... a5 {[%clk 0:37:25]} 43. bxa5 {[%clk
0:18:12]} 43... Ra7 {[%clk 0:35:24]} 44. Ra1 {[%clk 0:13:46]} 44... Rea8 {[%clk
0:35:39]} 45. g4 {[%clk 0:13:42]} 45... fxg4 {[%clk 0:34:01]} 46. f5 {[%clk
0:13:07]} 46... Ng5 {[%clk 0:33:36]} 47. hxg4 {[%clk 0:12:00]} 47... Rxa5 {[%clk
0:34:04]} 48. Rxa5 {[%clk 0:11:57]} 48... Rxa5 {[%clk 0:34:33]} 49. e6 {[%clk
0:10:25]} 49... Ra2+ {[%clk 0:32:18]} 50. Rf2 {[%clk 0:07:03]} 50... Rxf2+
{[%clk 0:26:16]} 51. Nxf2 {[%clk 0:07:06]} 51... Kg8 {[%clk 0:26:41]} 52. Kg3
{[%clk 0:07:16]} 52... Nh7 {[%clk 0:26:19]} 53. Kf4 {[%clk 0:04:07]} 53... Kf8
{[%clk 0:16:34]} 54. Ke5 {[%clk 0:04:01]} 54... Nf6 {[%clk 0:16:16]} 55. Kxd4
{[%clk 0:04:07]} 55... Ke8 {[%clk 0:16:17]} 56. Ke5 {[%clk 0:03:38]} 56... Ke7
{[%clk 0:16:46]} 57. Kf4 {[%clk 0:03:55]} 57... Nd5+ {[%clk 0:13:46]} 58. Ke4
{[%clk 0:04:24]} 58... Nf6+ {[%clk 0:13:48]} 59. Ke5 {[%clk 0:04:52]} 59... Kd8
{[%clk 0:14:13]} 60. Kf4 {[%clk 0:04:14]} 60... Nd5+ {[%clk 0:14:27]} 61. Kf3
{[%clk 0:04:18]} 61... Ke7 {[%clk 0:14:24]} 62. Nd3 {[%clk 0:04:01]} 62... g6
{[%clk 0:06:29]} 63. Nf4 {[%clk 0:03:07]} 63... gxf5 {[%clk 0:06:57]} 64. gxf5
{[%clk 0:03:22]} 64... Nf6 {[%clk 0:07:21]} 65. Ke3 {[%clk 0:03:04]} 65... Kd6
{[%clk 0:07:29]} 66. Kd4 {[%clk 0:03:24]} 66... Ne8 {[%clk 0:03:18]} 67. Nh5
{[%clk 0:02:44]} 67... Nc7 {[%clk 0:03:48]} 68. Ng7 {[%clk 0:02:40]} 68... h5
{[%clk 0:04:17]} 69. Ke4 {[%clk 0:01:24]} 69... h4 {[%clk 0:04:46]} 70. Kf4
{[%clk 0:00:51]} 70... h3 {[%clk 0:05:08]} 71. Kg3 {[%clk 0:00:38]} 71... Ke5
{[%clk 0:04:55]} 72. Kxh3 {[%clk 0:00:35]} 72... Kf6 {[%clk 0:05:19]} 73. Kg4
{[%clk 0:00:35]} 73... Kxg7 {[%clk 0:05:42]} 74. Kg5 {[%clk 0:01:00]} 74... Nd5
{[%clk 0:06:01]} 75. e7 {[%clk 0:01:05]} 75... Nxe7 {[%clk 0:06:15]} 76. f6+
{[%clk 0:01:13]} 76... Kf7 {[%clk 0:06:43]} 77. fxe7 {[%clk 0:01:35]} 77... Kxe7
{[%clk 0:07:09]} 1/2-1/2

[Variant "Standard"]
[Site "Europe Echecs"]

[Event "Open Cappelle-la-Grande"]
[Date "2025.02.21"]
[White "Eugene, Floryan"]
[Black "Kanov, Nikola"]
[WhiteElo "2468"]
[BlackElo "2405"]
[Round "9.9.8"]
[Result "1/2-1/2"]
[TimeControl "40/5400+30:1800+30"]

1. e4 {[%clk 1:22:21]} 1... e6 {[%clk 1:30:58]} 2. d4 {[%clk 1:21:53]} 2... d5
{[%clk 1:31:16]} 3. Nc3 {[%clk 1:22:15]} 3... Bb4 {[%clk 1:31:25]} 4. Ne2 {[%clk
1:21:02]} 4... Nf6 {[%clk 1:30:33]} 5. e5 {[%clk 1:14:53]} 5... Nfd7 {[%clk
1:30:55]} 6. f4 {[%clk 1:14:58]} 6... O-O {[%clk 1:29:03]} 7. a3 {[%clk
1:06:38]} 7... Be7 {[%clk 1:29:26]} 8. Be3 {[%clk 1:07:04]} 8... c5 {[%clk
1:26:18]} 9. Qd2 {[%clk 1:02:25]} 9... Nc6 {[%clk 1:19:55]} 10. g3 {[%clk
1:01:18]} 10... b6 {[%clk 1:16:28]} 11. h4 {[%clk 0:57:38]} 11... Ba6 {[%clk
1:12:20]} 12. Bh3 {[%clk 0:56:26]} 12... Qc7 {[%clk 1:00:03]} 13. Bf2 {[%clk
0:43:41]} 13... cxd4 {[%clk 0:55:36]} 14. Nxd4 {[%clk 0:43:54]} 14... Nc5 {[%clk
0:52:13]} 15. Bg2 {[%clk 0:38:54]} 15... Rfd8 {[%clk 0:48:57]} 16. Ncb5 {[%clk
0:38:08]} 16... Qd7 {[%clk 0:47:45]} 17. Nxc6 {[%clk 0:37:57]} 17... Qxc6 {[%clk
0:47:43]} 18. Nd4 {[%clk 0:38:06]} 18... Qc7 {[%clk 0:47:12]} 19. O-O-O {[%clk
0:31:04]} 19... Rac8 {[%clk 0:44:08]} 20. Kb1 {[%clk 0:31:20]} 20... Ne4 {[%clk
0:40:49]} 21. Bxe4 {[%clk 0:28:02]} 21... dxe4 {[%clk 0:41:17]} 22. Rhe1 {[%clk
0:28:19]} 22... Bb7 {[%clk 0:39:32]} 23. Qe2 {[%clk 0:26:15]} 23... Bd5 {[%clk
0:35:12]} 24. Nb5 {[%clk 0:24:50]} 24... Qb7 {[%clk 0:35:13]} 25. Rd4 {[%clk
0:23:19]} 25... a6 {[%clk 0:32:03]} 26. Nc3 {[%clk 0:22:47]} 26... Rxc3 {[%clk
0:31:47]} 27. bxc3 {[%clk 0:23:12]} 27... b5 {[%clk 0:31:59]} 28. Kb2 {[%clk
0:20:11]} 28... Rc8 {[%clk 0:28:14]} 29. Rxe4 {[%clk 0:17:29]} 29... Bxe4 {[%clk
0:24:33]} 30. Qxe4 {[%clk 0:17:56]} 30... Qc7 {[%clk 0:24:56]} 31. Bd4 {[%clk
0:18:00]} 31... a5 {[%clk 0:23:35]} 32. Re3 {[%clk 0:14:05]} 32... Bf8 {[%clk
0:21:38]} 33. Qd3 {[%clk 0:13:27]} 33... Rb8 {[%clk 0:20:29]} 34. Re1 {[%clk
0:13:31]} 34... b4 {[%clk 0:17:57]} 35. cxb4 {[%clk 0:12:57]} 35... axb4 {[%clk
0:17:45]} 36. a4 {[%clk 0:13:22]} 36... Rd8 {[%clk 0:12:17]} 37. Rd1 {[%clk
0:13:30]} 37... Rd5 {[%clk 0:08:13]} 38. Kb3 {[%clk 0:07:43]} 38... Qd7 {[%clk
0:07:13]} 39. Qe4 {[%clk 0:08:01]} 39... h5 {[%clk 0:06:55]} 40. Rd3 {[%clk
0:08:23]} 40... Ra5 {[%clk 0:06:21]} 41. Kb2 {[%clk 0:07:11]} 41... Qxa4 {[%clk
0:02:27]} 42. Kc1 {[%clk 0:07:37]} 42... Ra8 {[%clk 0:18:50]} 43. Bb2 {[%clk
0:30:47]} 43... Rc8 {[%clk 0:18:48]} 44. Rf3 {[%clk 0:27:50]} 44... g6 {[%clk
0:17:36]} 45. Kb1 {[%clk 0:28:10]} 45... Qa7 {[%clk 0:15:56]} 46. Qd4 {[%clk
0:26:22]} 46... Qb7 {[%clk 0:15:55]} 47. Qd1 {[%clk 0:26:05]} 47... Qe4 {[%clk
0:15:36]} 48. Rd3 {[%clk 0:26:22]} 48... Qc4 {[%clk 0:13:21]} 49. Rd4 {[%clk
0:26:20]} 49... Qc6 {[%clk 0:12:57]} 50. Rd3 {[%clk 0:23:34]} 50... Qa4 {[%clk
0:12:43]} 51. Rd4 {[%clk 0:23:19]} 51... Ra8 {[%clk 0:11:33]} 52. Qd3 {[%clk
0:18:54]} 52... Qa2+ {[%clk 0:11:08]} 53. Kc1 {[%clk 0:19:22]} 53... Rc8 {[%clk
0:11:29]} 54. Rd8 {[%clk 0:17:10]} 54... Rxd8 {[%clk 0:09:35]} 55. Qxd8 {[%clk
0:17:39]} 55... b3 {[%clk 0:09:30]} 56. Qd4 {[%clk 0:17:06]} 56... Ba3 {[%clk
0:03:59]} 57. cxb3 {[%clk 0:17:25]} 57... Qxb3 {[%clk 0:04:22]} 58. Bxa3 {[%clk
0:17:50]} 58... Qxa3+ {[%clk 0:04:47]} 59. Kd2 {[%clk 0:18:02]} 59... Qxg3
{[%clk 0:04:53]} 60. Qd8+ {[%clk 0:18:28]} 60... Kh7 {[%clk 0:05:15]} 61. Qf6
{[%clk 0:18:53]} 61... Qg2+ {[%clk 0:05:22]} 62. Kc3 {[%clk 0:17:28]} 62... Qc6+
{[%clk 0:05:13]} 63. Kb4 {[%clk 0:14:27]} 63... Qc7 {[%clk 0:05:02]} 64. Kb5
{[%clk 0:13:02]} 64... Kg8 {[%clk 0:05:19]} 65. Kb4 {[%clk 0:13:12]} 65... Qb6+
{[%clk 0:05:11]} 66. Kc4 {[%clk 0:13:36]} 66... Qc6+ {[%clk 0:04:00]} 67. Kd4
{[%clk 0:13:23]} 67... Qd5+ {[%clk 0:03:57]} 68. Ke3 {[%clk 0:13:31]} 68... Qc5+
{[%clk 0:01:35]} 69. Ke4 {[%clk 0:13:26]} 69... Qc7 {[%clk 0:01:49]} 70. Ke3
{[%clk 0:13:10]} 70... Kf8 {[%clk 0:01:12]} 71. Qh8+ {[%clk 0:10:03]} 71... Ke7
{[%clk 0:01:41]} 72. Qf6+ {[%clk 0:10:27]} 72... Ke8 {[%clk 0:02:06]} 73. Ke4
{[%clk 0:07:34]} 73... Qc4+ {[%clk 0:02:04]} 74. Ke3 {[%clk 0:07:52]} 74... Qb3+
{[%clk 0:02:24]} 75. Kd4 {[%clk 0:07:40]} 75... Qb4+ {[%clk 0:02:22]} 76. Ke3
{[%clk 0:07:57]} 76... Qf8 {[%clk 0:02:14]} 77. Kd4 {[%clk 0:06:32]} 77... Kd7
{[%clk 0:02:33]} 78. Kd3 {[%clk 0:06:34]} 78... Kc6 {[%clk 0:02:37]} 79. Kc4
{[%clk 0:06:59]} 79... Qc5+ {[%clk 0:02:36]} 80. Kd3 {[%clk 0:07:28]} 80... Qa3+
{[%clk 0:02:12]} 81. Kc4 {[%clk 0:07:40]} 81... Qf8 {[%clk 0:02:23]} 82. Qg5
{[%clk 0:07:19]} 82... Qc5+ {[%clk 0:02:33]} 83. Kd3 {[%clk 0:07:48]} 83... Qd5+
{[%clk 0:02:34]} 84. Kc3 {[%clk 0:08:04]} 84... Qf3+ {[%clk 0:02:15]} 85. Kd4
{[%clk 0:08:22]} 85... Qf2+ {[%clk 0:02:05]} 86. Kc4 {[%clk 0:08:43]} 86... Qc2+
{[%clk 0:02:04]} 87. Kd4 {[%clk 0:09:06]} 87... Qc5+ {[%clk 0:01:14]} 88. Kd3
{[%clk 0:09:14]} 88... Qa3+ {[%clk 0:00:59]} 89. Kc4 {[%clk 0:09:35]} 89... Qe3
{[%clk 0:00:57]} 90. Qf6 {[%clk 0:09:52]} 90... Qc5+ {[%clk 0:00:51]} 91. Kd3
{[%clk 0:10:18]} 91... Qd5+ {[%clk 0:01:09]} 92. Kc3 {[%clk 0:10:39]} 92... Qd7
{[%clk 0:01:23]} 93. Kc4 {[%clk 0:11:05]} 93... Kb6 {[%clk 0:01:36]} 94. Qg5
{[%clk 0:10:57]} 94... Qd5+ {[%clk 0:01:39]} 95. Kc3 {[%clk 0:11:17]} 95... Kb5
{[%clk 0:01:57]} 96. Qf6 {[%clk 0:11:28]} 96... Qd7 {[%clk 0:02:03]} 97. Qh8
{[%clk 0:11:14]} 97... Kc5 {[%clk 0:01:35]} 98. Qf8+ {[%clk 0:10:23]} 98... Kb6
{[%clk 0:00:55]} 99. Qb8+ {[%clk 0:10:25]} 99... Qb7 {[%clk 0:00:46]} 100. Qxb7+
{[%clk 0:10:30]} 100... Kxb7 {[%clk 0:01:13]} 101. Kb3 {[%clk 0:10:56]} 101...
Kc7 {[%clk 0:01:19]} 102. Kc3 {[%clk 0:11:22]} 102... Kd7 {[%clk 0:01:04]} 103.
Kd3 {[%clk 0:11:15]} 103... Ke7 {[%clk 0:01:06]} 104. Ke3 {[%clk 0:10:02]}
104... Kf8 {[%clk 0:01:17]} 105. Kd4 {[%clk 0:09:00]} 105... Kg7 {[%clk
0:01:12]} 106. Ke3 {[%clk 0:09:24]} 106... Kf8 {[%clk 0:01:03]} 107. Kd4 {[%clk
0:09:48]} 107... Kg7 {[%clk 0:01:12]} 108. Ke3 {[%clk 0:10:11]} 108... f6 {[%clk
0:01:09]} 109. exf6+ {[%clk 0:10:13]} 109... Kf7 {[%clk 0:01:14]} 110. Kf3
{[%clk 0:10:32]} 110... Kxf6 {[%clk 0:01:35]} 111. Ke4 {[%clk 0:10:59]} 111...
Kf7 {[%clk 0:01:55]} 112. Kf3 {[%clk 0:11:20]} 112... Ke7 {[%clk 0:02:08]} 113.
Ke3 {[%clk 0:11:44]} 113... Kd8 {[%clk 0:01:33]} 114. Kd4 {[%clk 0:11:37]}
114... Kd7 {[%clk 0:01:47]} 115. Kd3 {[%clk 0:12:03]} 115... Kc6 {[%clk
0:01:48]} 116. Kc4 {[%clk 0:11:49]} 116... Kd7 {[%clk 0:01:46]} 117. Kd3 {[%clk
0:12:14]} 117... Ke7 {[%clk 0:02:10]} 118. Ke3 {[%clk 0:12:31]} 118... Kf7
{[%clk 0:02:11]} 119. Kf3 {[%clk 0:12:47]} 1/2-1/2

[Variant "Standard"]
[Site "Europe Echecs"]

[Event "Open Cappelle-la-Grande"]
[Date "2025.02.21"]
[White "Petriashvili, Nikoloz"]
[Black "Akhvlediani, Irakli"]
[WhiteElo "2450"]
[BlackElo "2369"]
[Round "9.9.9"]
[Result "1/2-1/2"]
[TimeControl "40/5400+30:1800+30"]

1. e4 {[%clk 1:30:56]} 1... c5 {[%clk 1:30:56]} 2. Nf3 {[%clk 1:31:23]} 2... e6
{[%clk 1:31:17]} 3. d4 {[%clk 1:31:51]} 3... cxd4 {[%clk 1:31:42]} 4. Nxd4
{[%clk 1:32:20]} 4... Nf6 {[%clk 1:32:05]} 5. Nc3 {[%clk 1:32:49]} 5... Nc6
{[%clk 1:32:31]} 6. Ndb5 {[%clk 1:33:16]} 6... Bb4 {[%clk 1:32:51]} 7. a3 {[%clk
1:33:44]} 7... Bxc3+ {[%clk 1:33:14]} 8. Nxc3 {[%clk 1:34:13]} 8... d5 {[%clk
1:33:35]} 9. exd5 {[%clk 1:34:41]} 9... exd5 {[%clk 1:34:00]} 10. Bd3 {[%clk
1:35:09]} 10... O-O {[%clk 1:34:23]} 11. O-O {[%clk 1:35:22]} 11... Bg4 {[%clk
1:34:49]} 12. f3 {[%clk 1:35:49]} 12... Bh5 {[%clk 1:35:15]} 13. Bg5 {[%clk
1:36:04]} 13... Qb6+ {[%clk 1:35:36]} 14. Kh1 {[%clk 1:36:26]} 14... Ne4 {[%clk
1:35:53]} 15. Nxe4 {[%clk 1:36:52]} 15... dxe4 {[%clk 1:36:19]} 16. Bxe4 {[%clk
1:37:20]} 16... Qxb2 {[%clk 1:36:42]} 17. Rb1 {[%clk 1:37:47]} 17... Qxa3 {[%clk
1:37:04]} 18. Rxb7 {[%clk 1:38:14]} 18... Qa6 {[%clk 1:37:24]} 19. Rc7 {[%clk
1:38:39]} 19... Rac8 {[%clk 1:37:47]} 20. Rxc8 {[%clk 1:39:05]} 20... Rxc8
{[%clk 1:38:13]} 21. Qa1 {[%clk 1:39:32]} 21... Qxa1 {[%clk 1:38:36]} 22. Rxa1
{[%clk 1:40:01]} 22... Bg6 {[%clk 1:38:45]} 23. Bxc6 {[%clk 1:40:29]} 23... Rxc6
{[%clk 1:39:10]} 24. Rxa7 {[%clk 1:40:55]} 24... h6 {[%clk 1:39:37]} 25. Bf4
{[%clk 1:41:20]} 25... Rxc2 {[%clk 1:40:01]} 26. h3 {[%clk 1:41:46]} 26... Rc4
{[%clk 1:40:17]} 1/2-1/2

[Variant "Standard"]
[Site "Europe Echecs"]

[Event "Open Cappelle-la-Grande"]
[Date "2025.02.21"]
[White "Enchev, Ivajlo"]
[Black "Prraneeth Vuppala"]
[WhiteElo "2407"]
[BlackElo "2442"]
[Round "9.9.10"]
[Result "1/2-1/2"]
[TimeControl "40/5400+30:1800+30"]

1. d4 {[%clk 1:30:56]} 1... d5 {[%clk 1:30:51]} 2. Nf3 {[%clk 1:31:18]} 2... e6
{[%clk 1:31:09]} 3. c4 {[%clk 1:31:10]} 3... c6 {[%clk 1:31:23]} 4. g3 {[%clk
1:29:35]} 4... dxc4 {[%clk 1:31:30]} 5. Bg2 {[%clk 1:29:55]} 5... b5 {[%clk
1:31:25]} 6. Ne5 {[%clk 1:24:04]} 6... Bb4+ {[%clk 1:25:34]} 7. Nc3 {[%clk
1:22:49]} 7... Ne7 {[%clk 1:24:38]} 8. O-O {[%clk 1:21:17]} 8... f6 {[%clk
1:22:06]} 9. Nf3 {[%clk 1:20:07]} 9... Nd5 {[%clk 1:14:56]} 10. Bd2 {[%clk
1:19:31]} 10... Nxc3 {[%clk 1:12:18]} 11. bxc3 {[%clk 1:16:37]} 11... Ba3 {[%clk
1:11:38]} 12. Bc1 {[%clk 1:15:01]} 12... Bxc1 {[%clk 1:00:14]} 13. Qxc1 {[%clk
1:14:58]} 13... Nd7 {[%clk 1:00:24]} 14. Nd2 {[%clk 1:12:08]} 14... Bb7 {[%clk
0:59:10]} 15. a4 {[%clk 1:12:03]} 15... a6 {[%clk 0:52:37]} 16. Qa3 {[%clk
1:11:24]} 16... Qe7 {[%clk 0:43:21]} 17. Rfb1 {[%clk 1:08:01]} 17... Qxa3 {[%clk
0:26:42]} 18. Rxa3 {[%clk 1:08:09]} 18... Ke7 {[%clk 0:26:07]} 19. Nxc4 {[%clk
1:07:38]} 19... bxc4 {[%clk 0:26:30]} 20. Rxb7 {[%clk 1:07:47]} 20... Kd6 {[%clk
0:26:44]} 21. a5 {[%clk 0:39:30]} 21... Rhb8 {[%clk 0:24:12]} 22. Rxb8 {[%clk
0:39:56]} 22... Rxb8 {[%clk 0:24:38]} 23. Ra4 {[%clk 0:40:16]} 23... Rb1+ {[%clk
0:23:06]} 24. Bf1 {[%clk 0:40:41]} 24... c5 {[%clk 0:22:01]} 25. e3 {[%clk
0:37:41]} 25... e5 {[%clk 0:18:38]} 26. Kg2 {[%clk 0:34:28]} 26... exd4 {[%clk
0:16:01]} 27. exd4 {[%clk 0:34:26]} 27... cxd4 {[%clk 0:16:09]} 28. Rxc4 {[%clk
0:32:29]} 28... dxc3 {[%clk 0:16:18]} 29. Rxc3 {[%clk 0:31:53]} 29... Ke5 {[%clk
0:16:03]} 1/2-1/2

[Variant "Standard"]
[Site "Europe Echecs"]

[Event "Open Cappelle-la-Grande"]
[Date "2025.02.21"]
[White "Duboue, Peio"]
[Black "Liu, Casper"]
[WhiteElo "2440"]
[BlackElo "2271"]
[Round "9.9.11"]
[Result "1-0"]
[TimeControl "40/5400+30:1800+30"]

1. d4 {[%clk 1:30:56]} 1... Nf6 {[%clk 1:30:35]} 2. g3 {[%clk 1:31:23]} 2... d5
{[%clk 1:30:31]} 3. Nf3 {[%clk 1:31:02]} 3... c5 {[%clk 1:28:56]} 4. Bg2 {[%clk
1:30:55]} 4... cxd4 {[%clk 1:27:33]} 5. O-O {[%clk 1:30:44]} 5... h6 {[%clk
1:25:25]} 6. b3 {[%clk 1:24:31]} 6... Nc6 {[%clk 1:20:45]} 7. Nxd4 {[%clk
1:23:28]} 7... e5 {[%clk 1:20:28]} 8. Nxc6 {[%clk 1:23:10]} 8... bxc6 {[%clk
1:20:55]} 9. c4 {[%clk 1:21:56]} 9... Be6 {[%clk 1:17:19]} 10. Bb2 {[%clk
1:20:33]} 10... Bd6 {[%clk 0:57:04]} 11. Nc3 {[%clk 1:18:58]} 11... e4 {[%clk
0:48:39]} 12. cxd5 {[%clk 1:17:48]} 12... cxd5 {[%clk 0:49:07]} 13. Nb5 {[%clk
1:17:38]} 13... Be7 {[%clk 0:49:31]} 14. Rc1 {[%clk 1:13:42]} 14... O-O {[%clk
0:49:52]} 15. Nc7 {[%clk 1:12:28]} 15... Rc8 {[%clk 0:49:23]} 16. Nxe6 {[%clk
1:12:51]} 16... fxe6 {[%clk 0:49:30]} 17. Bh3 {[%clk 1:01:20]} 17... Qb6 {[%clk
0:42:05]} 18. e3 {[%clk 0:58:02]} 18... Kf7 {[%clk 0:39:05]} 19. Qe2 {[%clk
0:56:16]} 19... a5 {[%clk 0:32:42]} 20. Rc2 {[%clk 0:53:42]} 20... Rxc2 {[%clk
0:18:47]} 21. Qxc2 {[%clk 0:53:55]} 21... Qc5 {[%clk 0:17:11]} 22. Qe2 {[%clk
0:52:49]} 22... Ra8 {[%clk 0:15:03]} 23. Rc1 {[%clk 0:51:17]} 23... Qb6 {[%clk
0:15:30]} 24. Qc2 {[%clk 0:48:33]} 24... Ne8 {[%clk 0:13:52]} 25. Bd4 {[%clk
0:44:37]} 25... Qb5 {[%clk 0:12:08]} 26. Qd1 {[%clk 0:42:33]} 26... Qd7 {[%clk
0:07:16]} 27. Qh5+ {[%clk 0:40:19]} 27... Kf8 {[%clk 0:07:45]} 28. Qe2 {[%clk
0:24:32]} 28... a4 {[%clk 0:04:50]} 29. Qc2 {[%clk 0:23:02]} 29... axb3 {[%clk
0:04:02]} 30. axb3 {[%clk 0:23:31]} 30... Bf6 {[%clk 0:01:49]} 31. Bxf6 {[%clk
0:21:12]} 31... Nxf6 {[%clk 0:02:17]} 32. Qc5+ {[%clk 0:21:34]} 32... Qe7 {[%clk
0:00:35]} 33. Qb6 {[%clk 0:21:41]} 33... Ra7 {[%clk 0:00:31]} 34. Bxe6 {[%clk
0:21:33]} 34... Rb7 {[%clk 0:00:41]} 35. Rc8+ {[%clk 0:20:54]} 35... Ne8 {[%clk
0:01:09]} 36. Qc6 {[%clk 0:20:27]} 36... Rc7 {[%clk 0:01:20]} 37. Rxc7 {[%clk
0:20:00]} 37... Nxc7 {[%clk 0:01:17]} 38. Bxd5 {[%clk 0:20:19]} 38... Nxd5
{[%clk 0:00:50]} 39. Qa8+ {[%clk 0:20:30]} 39... Qe8 {[%clk 0:00:56]} 40. Qxd5
{[%clk 0:20:58]} 40... Qb8 {[%clk 0:00:41]} 41. Qc5+ {[%clk 0:21:16]} 41... Kg8
{[%clk 0:01:02]} 42. b4 {[%clk 0:21:38]} 42... Kh8 {[%clk 0:01:12]} 43. Qc4
{[%clk 0:20:01]} 43... Qb7 {[%clk 0:29:41]} 44. b5 {[%clk 0:48:42]} 44... Qd7
{[%clk 0:29:50]} 45. Qb3 {[%clk 0:47:54]} 45... Qd2 {[%clk 0:30:00]} 46. b6
{[%clk 0:46:49]} 46... Qe1+ {[%clk 0:30:23]} 47. Kg2 {[%clk 0:47:14]} 47... Qe2
{[%clk 0:30:50]} 48. b7 {[%clk 0:47:03]} 1-0

[Variant "Standard"]
[Site "Europe Echecs"]